bitfinex/quotes_BTCUSD_20220101
["timestamp","ask_amount","ask_price","bid_price","bid_amount"]
[1641039226956,6.069e-05,46928.0,46921.0,0.33321727]
[1641039227855,6.069e-05,46928.0,46921.0,0.3551508]
[1641039228056,6.069e-05,46928.0,46921.0,0.33507209]
[1641039228657,6.069e-05,46928.0,46921.0,0.35704292]
[1641039228906,6.069e-05,46928.0,46921.0,0.33510939]
[1641039229705,6.069e-05,46928.0,46921.0,0.35464077]
[1641039230906,6.069e-05,46928.0,46921.0,0.33198082]
[1641039231307,6.069e-05,46928.0,46921.0,0.38526182]
[1641039231510,6.069e-05,46928.0,46922.0,0.34216837]
[1641039232206,6.069e-05,46928.0,46927.0,0.00124057]
[1641039232407,6.069e-05,46928.0,46927.0,0.28590457]
[1641039234956,6.069e-05,46928.0,46927.0,0.284664]
[1641039236408,6.069e-05,46928.0,46922.0,0.00906968]
[1641039236609,6.069e-05,46928.0,46923.0,0.340885]
[1641039236911,6.069e-05,46928.0,46926.0,0.0205664]
[1641039237108,6.069e-05,46928.0,46927.0,0.284656]
[1641039237512,6.069e-05,46928.0,46926.0,0.0205664]
[1641039237908,6.069e-05,46928.0,46926.0,0.04169115]
[1641039238109,6.069e-05,46928.0,46926.0,0.02112475]
[1641039238309,6.069e-05,46928.0,46927.0,0.340885]
[1641039239810,6.069e-05,46928.0,46927.0,0.3595]
[1641039241460,6.069e-05,46928.0,46927.0,0.38101448]
[1641039241662,6.069e-05,46928.0,46927.0,0.41567448]
[1641039241862,6.069e-05,46928.0,46927.0,0.38351511]
[1641039242064,6.069e-05,46928.0,46927.0,0.36200063]
[1641039242863,0.017419,46936.0,46927.0,0.38068018]
[1641039243064,0.017419,46936.0,46927.0,0.01867955]
[1641039243905,0.017419,46936.0,46931.0,0.32609035]
[1641039244906,0.017419,46936.0,46931.0,0.34538999]
[1641039245306,0.0002,46936.0,46931.0,0.34538999]
[1641039245908,0.0002,46936.0,46931.0,0.36679784]
[1641039246108,0.0002,46936.0,46931.0,0.3474982]
[1641039246909,0.0002,46936.0,46931.0,0.36828127]
[1641039247109,0.0002,46936.0,46931.0,0.34687342]
[1641039247312,6.22e-05,46935.0,46931.0,0.34687342]
[1641039247959,6.22e-05,46935.0,46931.0,0.36540993]
[1641039248256,0.0086712,46935.0,46931.0,0.34462686]
[1641039249459,0.0086712,46935.0,46931.0,0.365298]
[1641039250565,0.0086712,46935.0,46931.0,0.38600829]
[1641039251414,0.0086712,46935.0,46931.0,0.34646651]
[1641039251816,0.0086712,46935.0,46931.0,0.32609035]
[1641039252113,0.0086712,46935.0,46931.0,0.34555415]
[1641039252914,0.0086712,46935.0,46931.0,0.3644871]
[1641039253114,0.0086712,46935.0,46931.0,0.3450233]
[1641039253716,0.0086712,46935.0,46931.0,0.34630103]
[1641039253915,0.0086712,46935.0,46934.0,0.00126658]
[1641039254115,0.0086712,46935.0,46934.0,0.28580458]
[1641039254514,0.0086712,46935.0,46934.0,0.33906858]
[1641039255864,0.0086712,46935.0,46934.0,0.61385158]
[1641039256064,0.0086712,46935.0,46934.0,0.63292774]
[1641039257067,0.0086712,46935.0,46934.0,1.36436647]
[1641039257266,0.0086712,46935.0,46934.0,1.34529031]
[1641039257867,0.0086712,46935.0,46934.0,0.6352378]
[1641039258067,0.0086712,46935.0,46934.0,0.65644224]
[1641039258267,6.22e-05,46935.0,46934.0,0.63505602]
[1641039259129,6.22e-05,46935.0,46934.0,0.63395992]
[1641039260132,6.22e-05,46935.0,46934.0,0.65240311]
[1641039261229,6.22e-05,46935.0,46934.0,0.63329475]
[1641039262032,6.22e-05,46935.0,46934.0,0.65416772]
[1641039262231,6.22e-05,46935.0,46934.0,0.63472455]
[1641039262670,0.0086722,46935.0,46934.0,0.63472455]
[1641039263063,0.0086722,46935.0,46934.0,0.6563695]
[1641039263264,0.0086722,46935.0,46934.0,0.63549653]
[1641039264669,0.00842827,46935.0,46934.0,0.66144376]
[1641039264871,0.00842827,46935.0,46934.0,0.63979881]
[1641039265068,0.00842827,46935.0,46934.0,0.66034881]
[1641039265273,0.00842827,46935.0,46934.0,0.64026726]
[1641039265471,0.00842827,46935.0,46934.0,0.69026726]
[1641039266510,0.00842827,46935.0,46934.0,0.75948043]
[1641039266711,0.00842827,46935.0,46934.0,0.73893043]
[1641039267111,0.0001,46936.0,46935.0,0.340861]
[1641039267313,0.0001,46936.0,46935.0,0.74233248]
[1641039268214,0.0001,46936.0,46935.0,0.76389299]
[1641039268412,0.0001,46936.0,46935.0,0.86389299]
[1641039268610,0.0001,46936.0,46935.0,0.76389299]
[1641039269115,0.00016952,46945.0,46936.0,0.284526]
[1641039269312,0.00016952,46945.0,46940.0,0.053258]
[1641039269514,0.00877852,46945.0,46941.0,0.23948909]
[1641039269713,0.00877852,46945.0,46936.0,0.27491784]
[1641039269912,0.01738852,46945.0,46937.0,0.340885]
[1641039270168,0.01738852,46945.0,46937.0,0.390885]
[1641039270961,0.01738852,46945.0,46940.0,0.053257]
[1641039271160,0.01666658,46945.0,46941.0,0.238466]
[1641039271661,0.01666658,46945.0,46941.0,0.338466]
[1641039272663,0.01666658,46945.0,46942.0,0.394142]
[1641039272866,0.01666658,46945.0,46942.0,0.444142]
[1641039273065,0.01666658,46945.0,46942.0,0.390885]
[1641039273664,0.01666658,46945.0,46943.0,0.053254]
[1641039273909,0.01666658,46945.0,46944.0,0.284391]
[1641039275012,0.01666658,46945.0,46944.0,0.51874265]
[1641039275415,0.07016658,46947.0,46944.0,0.51874265]
[1641039276014,0.07016658,46947.0,46945.0,0.053252]
[1641039276314,0.07016658,46947.0,46946.0,0.340854]
[1641039277115,0.07016658,46947.0,46946.0,0.85170415]
[1641039277314,0.07016658,46947.0,46946.0,0.87087481]
[1641039277513,0.07016658,46947.0,46946.0,0.63509077]
[1641039277764,0.07877658,46947.0,46946.0,0.63509077]
[1641039278366,0.07877658,46947.0,46946.0,0.87043078]
[1641039278865,0.07877658,46947.0,46946.0,0.88848343]
[1641039279162,0.07877658,46947.0,46946.0,0.89032828]
[1641039279366,0.07877658,46947.0,46946.0,0.87227563]
[1641039279664,0.07877658,46947.0,46946.0,0.88497255]
[1641039280068,0.07877658,46947.0,46946.0,1.03497255]
[1641039280264,0.07877658,46947.0,46946.0,1.05320842]
[1641039280464,0.07877658,46947.0,46946.0,0.78415598]
[1641039280662,0.07877658,46947.0,46946.0,0.82012512]
[1641039281267,0.07877658,46947.0,46946.0,0.84127409]
[1641039281515,0.07877658,46947.0,46946.0,1.95203822]
[1641039281715,6.58e-06,46947.0,46946.0,2.66209073]
[1641039281916,6.58e-06,46948.0,46947.0,0.284371]
[1641039282120,0.0002,46953.0,46951.0,1.469078]
[1641039282316,0.0101,46964.0,46955.0,0.340787]
[1641039282517,0.0101,46964.0,46956.0,0.58100992]
[1641039282715,0.0101,46964.0,46956.0,1.21990992]
[1641039283215,6.155e-05,46957.0,46956.0,1.23820236]
[1641039283516,0.4381,46970.0,46961.0,0.0012387]
[1641039283517,0.095,46970.0,46961.0,0.0012387]
[1641039283719,0.0002,46971.0,46970.0,0.0949]
[1641039283917,0.7675,46984.0,46975.0,0.00121869]
[1641039284316,0.7675,46984.0,46976.0,0.2622913]
[1641039285570,0.0007,46984.0,46977.0,0.053217]
[1641039285871,0.00931,46984.0,46976.0,0.2622913]
[1641039286071,0.00931,46984.0,46977.0,0.340885]
[1641039286472,0.00931,46984.0,46977.0,0.394103]
[1641039287272,0.00445806,46983.0,46977.0,0.41331958]
[1641039287574,0.00445806,46983.0,46980.0,0.05321]
[1641039287973,0.00445806,46983.0,46981.0,0.340885]
[1641039288778,0.00445806,46983.0,46982.0,0.00125322]
[1641039289017,0.00445806,46983.0,46982.0,0.28508022]
[1641039290319,0.00445806,46983.0,46982.0,0.92362022]
[1641039290522,0.00445806,46983.0,46982.0,0.922367]
[1641039291323,0.00445806,46983.0,46982.0,0.94203398]
[1641039291720,0.01792,46984.0,46982.0,0.94203398]
[1641039292320,0.01792,46984.0,46982.0,0.96178034]
[1641039292520,0.01792,46984.0,46982.0,0.94211336]
[1641039293360,0.01792,46984.0,46982.0,0.96230068]
[1641039294162,0.01792,46984.0,46982.0,0.922367]
[1641039294363,0.01792,46984.0,46982.0,0.9427732]
[1641039295864,0.01792,46984.0,46982.0,0.96197361]
[1641039296063,0.01792,46984.0,46982.0,0.94156741]
[1641039296263,0.00931,46984.0,46983.0,0.23889279]
[1641039296513,0.00931,46984.0,46983.0,0.979399]
[1641039297313,0.01792,46984.0,46983.0,1.00041122]
[1641039297516,0.01792,46984.0,46983.0,1.26286102]
[1641039297713,0.01792,46984.0,46983.0,1.00041122]
[1641039298312,0.01792,46984.0,46983.0,1.02035252]
[1641039298714,0.01801777,46984.0,46983.0,1.02035252]
[1641039299115,0.01801777,46984.0,46983.0,0.979399]
[1641039299514,0.01801777,46984.0,46983.0,0.99961911]
[1641039299713,0.01801777,46984.0,46983.0,1.28354777]
[1641039300171,0.0002,46985.0,46984.0,0.8494]
[1641039300363,0.0002,46985.0,46984.0,1.24800829]
[1641039300562,0.0002,46985.0,46984.0,1.54674518]
[1641039300764,0.0002,46987.0,46985.0,0.34737969]
[1641039300962,0.0002,46987.0,46986.0,1.18906432]
[1641039301167,0.0002,46987.0,46986.0,1.10825914]
[1641039301564,0.00881,46987.0,46986.0,1.10825914]
[1641039301767,0.0002,46988.0,46987.0,0.59]
[1641039301965,0.01203494,46999.0,46990.0,0.0021]
[1641039302166,0.0004,46994.0,46993.0,0.28503449]
[1641039302367,0.0004,46994.0,46993.0,1.00939363]
[1641039302567,0.0004,46994.0,46993.0,1.06258163]
[1641039302766,0.0004,46994.0,46993.0,1.80406078]
[1641039302970,0.0857443,47000.0,46994.0,0.6004]
[1641039303169,0.002,47009.0,47000.0,0.0091557]
[1641039303368,0.002,47009.0,47008.0,0.00123411]
[1641039304015,0.002,47009.0,47008.0,0.23911496]
[1641039304614,0.002,47009.0,47008.0,0.00123411]
[1641039304818,0.01061,47009.0,47001.0,0.65808792]
[1641039305016,0.01061,47009.0,47001.0,0.65931538]
[1641039305517,0.01061,47009.0,47001.0,0.67865085]
[1641039305718,0.25310022,47008.0,47001.0,0.65761547]
[1641039305920,0.28409904,47005.0,47001.0,0.65761547]
[1641039306518,0.11403086,47002.0,47001.0,0.67825286]
[1641039306719,0.11403086,47002.0,47001.0,0.65891739]
[1641039307218,0.24613328,47004.0,47001.0,0.65891739]
[1641039307419,0.00375051,47004.0,47001.0,0.6798554]
[1641039307668,0.00375051,47004.0,47003.0,0.26598343]
[1641039307862,0.00375051,47004.0,47003.0,0.28352]
[1641039308261,0.00375051,47004.0,47001.0,0.63828]
[1641039308262,0.00385586,47004.0,47001.0,0.63828]
[1641039308462,0.00385586,47004.0,47002.0,0.02016347]
[1641039309361,0.00385586,47004.0,47003.0,0.00071846]
[1641039309566,0.00385586,47004.0,47003.0,0.00143692]
[1641039310463,0.10385586,47004.0,47003.0,0.00143692]
[1641039310967,0.00385586,47004.0,47003.0,0.00143692]
[1641039311418,0.34474086,47004.0,47003.0,0.00143692]
[1641039311620,0.00385586,47004.0,47003.0,0.00143692]
[1641039311819,0.00010535,47004.0,47003.0,0.00143692]
[1641039312520,0.00010535,47004.0,47003.0,0.34232192]
[1641039313622,0.00010535,47004.0,47003.0,0.36193326]
[1641039314624,0.00010535,47004.0,47003.0,0.36226606]
[1641039315467,0.00010535,47004.0,47003.0,0.38303008]
[1641039315666,0.00010535,47004.0,47003.0,0.36308594]
[1641039316566,0.00010535,47004.0,47003.0,0.38216268]
[1641039316766,0.00871535,47004.0,47003.0,0.36139866]
[1641039317569,0.00871535,47004.0,47003.0,0.38206237]
[1641039317870,0.00612434,47006.0,47003.0,0.36298563]
[1641039318068,0.00612434,47006.0,47003.0,0.36226717]
[1641039318269,0.00612434,47006.0,47003.0,0.36154871]
[1641039318468,0.00612434,47006.0,47004.0,0.00143692]
[1641039318669,0.00612434,47006.0,47005.0,0.283499]
[1641039319515,0.00612434,47006.0,47004.0,0.00143692]
[1641039320520,0.3116995,47005.0,47004.0,0.00143692]
[1641039320917,0.7525845,47005.0,47004.0,0.00143692]
[1641039321118,1.1041779,47005.0,47004.0,0.00143692]
[1641039321319,1.2105889,47005.0,47004.0,0.00143692]
[1641039322222,1.32461976,47005.0,47004.0,0.00143692]
[1641039323669,1.2105889,47005.0,47004.0,0.00143692]
[1641039324071,1.21068549,47005.0,47004.0,0.00143692]
[1641039324772,1.21929549,47005.0,47004.0,0.00143692]
[1641039324976,1.16608849,47005.0,47004.0,0.00143692]
[1641039325372,1.26608849,47005.0,47004.0,0.00143692]
[1641039325772,1.16608849,47005.0,47004.0,0.00143692]
[1641039326814,1.28011935,47005.0,47004.0,0.00143692]
[1641039327214,1.16608849,47005.0,47004.0,0.00143692]
[1641039327616,1.31608849,47005.0,47004.0,0.00143692]
[1641039328214,1.01608849,47005.0,47004.0,0.00143692]
[1641039328415,1.40249315,47005.0,47004.0,0.00143692]
[1641039328613,1.30249315,47005.0,47004.0,0.00143692]
[1641039328814,1.18846229,47005.0,47004.0,0.00143692]
[1641039329014,1.16481965,47005.0,47004.0,0.00143692]
[1641039329815,1.27885051,47005.0,47004.0,0.00143692]
[1641039330274,1.32885051,47005.0,47004.0,0.00143692]
[1641039331867,0.0091557,47000.0,46970.0,0.95411]
[1641039332067,0.1,46991.0,46977.0,0.00011]
[1641039332268,0.82949395,46991.0,46990.0,0.0001]
[1641039332469,0.00120016,46987.0,46977.0,0.00011]
[1641039332668,0.00120016,46987.0,46982.0,0.72060753]
[1641039332669,0.10120016,46987.0,46982.0,0.72060753]
[1641039332870,0.27248094,46986.0,46982.0,0.0212905]
[1641039333067,0.46731024,46983.0,46982.0,0.0212905]
[1641039333270,1.14027641,46983.0,46982.0,0.0212905]
[1641039333467,1.34027641,46983.0,46982.0,0.0212905]
[1641039333912,1.34027641,46983.0,46977.0,0.00011]
[1641039333913,1.34154576,46983.0,46977.0,0.00011]
[1641039334112,0.053235,46981.0,46977.0,0.00011]
[1641039334315,0.340885,46980.0,46977.0,0.00011]
[1641039334516,0.05,46979.0,46977.0,0.00011]
[1641039334714,0.390885,46979.0,46977.0,0.00011]
[1641039335116,0.79019144,46979.0,46977.0,0.00011]
[1641039336215,0.440885,46979.0,46977.0,0.00011]
[1641039336418,0.1,46979.0,46977.0,0.00011]
[1641039336615,7.642e-05,46981.0,46977.0,0.00011]
[1641039337215,0.340885,46980.0,46977.0,0.00011]
[1641039337415,7.642e-05,46981.0,46977.0,0.00011]
[1641039337416,0.05330442,46981.0,46977.0,0.00011]
[1641039337676,0.340885,46980.0,46977.0,0.00011]
[1641039338768,7.642e-05,46981.0,46977.0,0.00011]
[1641039339168,7.642e-05,46981.0,46979.0,0.340885]
[1641039339571,7.642e-05,46981.0,46980.0,0.24081035]
[1641039339867,7.642e-05,46981.0,46980.0,0.56520796]
[1641039340870,7.642e-05,46981.0,46980.0,0.58497723]
[1641039341923,7.642e-05,46981.0,46980.0,0.58514805]
[1641039342123,7.642e-05,46981.0,46980.0,0.30379609]
[1641039342523,7.642e-05,46981.0,46980.0,0.01994009]
[1641039342725,7.642e-05,46981.0,46980.0,0.03925361]
[1641039342924,7.642e-05,46981.0,46980.0,0.01931352]
[1641039344125,7.642e-05,46981.0,46977.0,0.00011]
[1641039345172,0.05330442,46981.0,46977.0,0.00011]
[1641039348167,7.642e-05,46981.0,46977.0,0.00011]
[1641039348666,7.642e-05,46981.0,46979.0,0.340885]
[1641039349325,7.642e-05,46981.0,46977.0,0.00011]
[1641039349527,0.053228,46980.0,46977.0,0.00011]
[1641039349727,7.642e-05,46981.0,46979.0,0.340885]
[1641039349927,7.642e-05,46981.0,46979.0,0.36116147]
[1641039350928,7.642e-05,46981.0,46979.0,0.38218828]
[1641039351132,7.642e-05,46981.0,46979.0,0.36191181]
[1641039351931,7.642e-05,46981.0,46979.0,0.38361981]
[1641039352231,7.642e-05,46981.0,46979.0,0.362593]
[1641039352432,7.642e-05,46981.0,46979.0,0.021708]
[1641039352868,7.642e-05,46981.0,46979.0,0.040411]
[1641039353068,7.642e-05,46981.0,46979.0,0.018703]
[1641039354169,7.642e-05,46981.0,46977.0,0.00011]
[1641039354570,0.33707219,46979.0,46977.0,0.00011]
[1641039355371,0.34568219,46979.0,46977.0,0.00011]
[1641039356176,0.34575738,46979.0,46977.0,0.00011]
[1641039357314,0.44575738,46979.0,46977.0,0.00011]
[1641039357515,0.83664238,46979.0,46977.0,0.00011]
[1641039357716,0.83790675,46979.0,46977.0,0.00011]
[1641039358114,0.95193761,46979.0,46977.0,0.00011]
[1641039359317,0.94193761,46979.0,46977.0,0.00011]
[1641039359920,1.21460073,46979.0,46977.0,0.00011]
[1641039360167,1.2143446,46979.0,46977.0,0.00011]
[1641039361266,1.4143446,46979.0,46977.0,0.00011]
[1641039361660,1.21362166,46979.0,46977.0,0.00011]
[1641039362662,1.41362166,46979.0,46977.0,0.00011]
[1641039363461,1.27460073,46979.0,46977.0,0.00011]
[1641039363663,1.07460073,46979.0,46977.0,0.00011]
[1641039363915,0.80193761,46979.0,46977.0,0.00011]
[1641039364913,0.95193761,46979.0,46977.0,0.00011]
[1641039365914,0.83664238,46979.0,46977.0,0.00011]
[1641039366917,0.82664238,46979.0,46977.0,0.00011]
[1641039367115,0.78664238,46979.0,46977.0,0.00011]
[1641039367765,0.68664238,46979.0,46977.0,0.00011]
[1641039369066,0.83664238,46979.0,46977.0,0.00011]
[1641039369464,0.82803238,46979.0,46977.0,0.00011]
[1641039376968,0.83664238,46979.0,46977.0,0.00011]
[1641039380517,1.08188713,46979.0,46977.0,0.00011]
[1641039380717,0.34957019,46979.0,46977.0,0.00011]
[1641039380920,0.00868519,46979.0,46977.0,0.00011]
[1641039381322,1.0838,46989.0,46977.0,0.00011]
[1641039382019,0.43162101,46985.0,46977.0,0.00011]
[1641039382323,0.106463,46982.0,46977.0,0.00011]
[1641039383573,0.053228,46981.0,46977.0,0.00011]
[1641039384672,0.340885,46980.0,46977.0,0.00011]
[1641039385072,0.440885,46980.0,46977.0,0.00011]
[1641039385275,0.053228,46981.0,46977.0,0.00011]
[1641039385474,0.00124233,46992.0,46977.0,0.00011]
[1641039385673,0.106439,46992.0,46977.0,0.053329]
[1641039385874,0.106439,46992.0,46978.0,0.26203199]
[1641039386424,0.106439,46992.0,46985.0,0.24228949]
[1641039387024,0.061829,46988.0,46985.0,0.24228949]
[1641039387225,0.061829,46988.0,46982.0,2.0890115]
[1641039387226,0.111829,46988.0,46982.0,2.0890115]
[1641039387432,0.058609,46988.0,46978.0,0.00501]
[1641039387630,0.008609,46988.0,46978.0,0.00011]
[1641039387829,0.008609,46988.0,46981.0,0.02065137]
[1641039388027,0.053221,46986.0,46981.0,0.02065137]
[1641039388428,0.008609,46988.0,46982.0,0.25931591]
[1641039388625,0.008609,46988.0,46982.0,0.30931591]
[1641039388827,0.008609,46988.0,46982.0,0.25931591]
[1641039389026,0.061828,46988.0,46982.0,0.25931591]
[1641039389226,0.061828,46988.0,46979.0,0.24334695]
[1641039389227,0.45074454,46985.0,46979.0,0.24334695]
[1641039389428,0.45074454,46985.0,46979.0,0.28401693]
[1641039389627,0.45074454,46985.0,46979.0,0.29017728]
[1641039389828,0.45074454,46985.0,46980.0,0.340885]
[1641039390032,0.45074454,46985.0,46979.0,0.29017728]
[1641039390276,0.008609,46988.0,46980.0,0.87957844]
[1641039390476,0.008609,46988.0,46982.0,0.00126291]
[1641039390779,0.008609,46988.0,46987.0,0.001259]
[1641039391175,0.008609,46988.0,46987.0,0.342144]
[1641039391379,0.008609,46988.0,46987.0,0.59649876]
[1641039392174,0.008609,46988.0,46987.0,0.61473762]
[1641039392377,0.008609,46988.0,46987.0,0.60512112]
[1641039393277,0.008609,46988.0,46987.0,0.62377131]
[1641039393477,0.008609,46988.0,46987.0,0.60553245]
[1641039394217,0.008609,46988.0,46987.0,0.62463629]
[1641039394418,0.008609,46988.0,46987.0,0.6559861]
[1641039394817,0.008609,46988.0,46987.0,0.41148653]
[1641039395220,0.008609,46988.0,46987.0,0.431042]
[1641039396319,0.008609,46988.0,46987.0,0.429783]
[1641039396718,0.008609,46988.0,46987.0,0.44988906]
[1641039396920,0.008609,46988.0,46987.0,0.41099106]
[1641039397419,0.008609,46988.0,46987.0,0.04059148]
[1641039397420,0.3823109,46988.0,46987.0,0.04059148]
[1641039397679,0.87649066,46988.0,46987.0,0.04059148]
[1641039398073,0.92649066,46988.0,46987.0,0.04059148]
[1641039398473,0.87327166,46988.0,46982.0,0.01016948]
[1641039398674,0.053226,46986.0,46982.0,0.00891641]
[1641039399274,0.36357155,46986.0,46982.0,0.00891641]
[1641039399775,0.46357155,46986.0,46982.0,0.00891641]
[1641039400275,0.46357155,46986.0,46978.0,0.02130798]
[1641039401520,0.46357155,46986.0,46978.0,0.00011]
[1641039402322,0.36357155,46986.0,46978.0,0.00011]
[1641039402724,0.36357155,46986.0,46979.0,0.340885]
[1641039402923,0.36357155,46986.0,46979.0,0.05]
[1641039403127,0.36357155,46986.0,46978.0,0.00011]
[1641039403324,0.36357155,46986.0,46979.0,0.340885]
[1641039403525,0.36357155,46986.0,46979.0,0.390885]
[1641039403726,0.36331535,46986.0,46979.0,0.390885]
[1641039403926,0.36331535,46986.0,46979.0,0.340885]
[1641039404126,0.36331535,46986.0,46979.0,0.390885]
[1641039404426,0.36331535,46986.0,46979.0,0.41047864]
[1641039405265,0.36331535,46986.0,46980.0,0.23433013]
[1641039405466,0.36331535,46986.0,46979.0,0.07103725]
[1641039405668,0.36331535,46986.0,46980.0,0.340885]
[1641039406065,0.36331535,46986.0,46979.0,0.07103725]
[1641039406467,0.36331535,46986.0,46980.0,0.01806422]
[1641039407369,0.31034555,46986.0,46981.0,0.340885]
[1641039407567,0.31034555,46986.0,46981.0,0.390885]
[1641039407968,0.31034555,46986.0,46982.0,0.23769718]
[1641039408269,7.247e-05,46985.0,46980.0,0.01806422]
[1641039408470,7.247e-05,46985.0,46981.0,0.36192765]
[1641039408667,7.247e-05,46985.0,46981.0,0.41192765]
[1641039409724,7.247e-05,46985.0,46982.0,0.23897015]
[1641039409925,7.247e-05,46985.0,46983.0,0.283819]
[1641039410125,7.247e-05,46985.0,46983.0,0.333819]
[1641039410326,7.247e-05,46985.0,46983.0,0.05]
[1641039410526,7.247e-05,46985.0,46981.0,0.07061905]
[1641039410728,7.247e-05,46985.0,46982.0,0.340885]
[1641039411032,0.05329547,46985.0,46981.0,0.02061905]
[1641039411428,0.05329547,46985.0,46982.0,0.01930683]
[1641039412676,7.247e-05,46985.0,46978.0,0.00011]
[1641039412866,7.247e-05,46985.0,46979.0,0.340885]
[1641039413066,7.247e-05,46985.0,46980.0,0.24673132]
[1641039413266,7.247e-05,46985.0,46981.0,0.283848]
[1641039413467,7.247e-05,46985.0,46981.0,0.333848]
[1641039414470,7.247e-05,46985.0,46981.0,0.3543369]
[1641039415471,7.247e-05,46985.0,46981.0,0.37620043]
[1641039415770,7.247e-05,46985.0,46981.0,0.35571153]
[1641039415973,0.05329547,46985.0,46981.0,0.35571153]
[1641039416418,0.05188405,46985.0,46981.0,0.37586254]
[1641039416616,0.05188405,46985.0,46981.0,0.35399901]
[1641039417420,0.3823109,46988.0,46981.0,0.37266283]
[1641039417421,0.053221,46987.0,46981.0,0.37266283]
[1641039417620,0.053221,46987.0,46981.0,0.35251182]
[1641039418420,0.053221,46987.0,46981.0,0.37335236]
[1641039418619,0.053221,46987.0,46981.0,0.35468854]
[1641039418620,6.629e-05,46986.0,46981.0,0.35468854]
[1641039419422,6.629e-05,46986.0,46981.0,0.37324384]
[1641039419621,6.629e-05,46986.0,46981.0,0.3524033]
[1641039420467,6.629e-05,46986.0,46981.0,0.37148983]
[1641039420670,6.629e-05,46986.0,46981.0,0.35293453]
[1641039421069,6.629e-05,46986.0,46982.0,0.23220309]
[1641039421268,6.629e-05,46986.0,46983.0,0.340854]
[1641039421667,6.629e-05,46986.0,46983.0,0.390854]
[1641039422270,6.629e-05,46986.0,46983.0,0.684433]
[1641039422469,6.629e-05,46986.0,46983.0,0.70468523]
[1641039422870,6.629e-05,46986.0,46984.0,0.23715034]
[1641039423071,6.629e-05,46986.0,46985.0,0.28509985]
[1641039423271,6.629e-05,46986.0,46985.0,0.57020974]
[1641039423470,6.629e-05,46986.0,46985.0,0.62020974]
[1641039423671,0.00857529,46988.0,46985.0,0.62020974]
[1641039423917,0.00857529,46988.0,46985.0,1.25869974]
[1641039424415,0.00857529,46988.0,46986.0,0.053206]
[1641039424617,0.00857529,46988.0,46987.0,0.59499338]
[1641039424816,0.00857529,46988.0,46987.0,0.64499338]
[1641039425420,0.00857529,46988.0,46987.0,0.66325918]
[1641039426420,0.00857529,46988.0,46987.0,0.68587618]
[1641039426622,0.00857529,46988.0,46987.0,0.66761038]
[1641039427420,0.00857529,46988.0,46987.0,0.68615398]
[1641039427680,0.00857529,46988.0,46987.0,0.66479041]
[1641039428470,0.00857529,46988.0,46987.0,0.68407525]
[1641039428670,0.00857529,46988.0,46987.0,0.66553165]
[1641039429273,0.00863844,46988.0,46987.0,0.66553165]
[1641039429471,0.00863844,46988.0,46987.0,0.68535328]
[1641039430271,0.00863844,46988.0,46987.0,0.64624681]
[1641039430471,0.00863844,46988.0,46987.0,0.66777705]
[1641039431625,0.00863844,46988.0,46987.0,0.43369485]
[1641039431828,0.00863844,46988.0,46987.0,0.41216461]
[1641039432628,0.00863844,46988.0,46987.0,0.43372724]
[1641039432829,0.00863844,46988.0,46987.0,0.41363906]
[1641039433627,0.00863844,46988.0,46987.0,0.43248345]
[1641039433829,0.00863844,46988.0,46987.0,0.41092082]
[1641039434031,0.00863844,46988.0,46987.0,0.36092082]
[1641039434632,0.00863844,46988.0,46987.0,0.38271723]
[1641039434832,0.00863844,46988.0,46987.0,0.36387284]
[1641039435470,0.00863844,46988.0,46987.0,0.38267485]
[1641039435672,0.00863844,46988.0,46987.0,0.36087844]
[1641039435869,0.00863844,46988.0,46987.0,0.41087844]
[1641039436569,0.00863844,46988.0,46987.0,0.43026715]
[1641039436975,0.00863844,46988.0,46987.0,0.39207643]
[1641039437572,0.00863844,46988.0,46987.0,0.65629525]
[1641039438171,0.00863844,46988.0,46987.0,0.4125334]
[1641039438573,0.00863844,46988.0,46987.0,0.43220412]
[1641039438774,0.00863844,46988.0,46987.0,0.41174715]
[1641039439024,0.44339992,46988.0,46987.0,0.41174715]
[1641039439226,0.44339992,46988.0,46987.0,0.41049372]
[1641039439628,0.44339992,46988.0,46987.0,0.42985275]
[1641039439925,0.00863844,46988.0,46987.0,0.41018203]
[1641039440124,0.00863844,46988.0,46987.0,0.65822903]
[1641039440525,0.00863844,46988.0,46987.0,0.68013913]
[1641039440725,0.00863844,46988.0,46987.0,0.6607801]
[1641039441727,0.00863844,46988.0,46987.0,0.65189368]
[1641039442230,0.00863844,46988.0,46987.0,0.67380841]
[1641039442425,0.00863844,46988.0,46987.0,0.65312915]
[1641039442675,0.00863844,46988.0,46987.0,0.67251023]
[1641039442869,0.00863844,46988.0,46987.0,0.41143492]
[1641039443270,0.00863844,46988.0,46987.0,0.65673841]
[1641039443672,0.00863844,46988.0,46987.0,0.67724453]
[1641039443871,0.00863844,46988.0,46987.0,0.65786345]
[1641039444672,0.00863844,46988.0,46987.0,0.67930925]
[1641039444874,0.00863844,46988.0,46987.0,0.65880313]
[1641039445673,0.00863844,46988.0,46987.0,0.68046754]
[1641039445876,0.00863844,46988.0,46987.0,0.65902174]
[1641039446730,0.00863844,46988.0,46987.0,0.67809455]
[1641039447029,0.00863844,46988.0,46987.0,1.31656455]
[1641039447434,0.00863844,46988.0,46987.0,1.27582733]
[1641039447632,0.00863844,46988.0,46987.0,1.29506469]
[1641039448633,0.00863844,46988.0,46987.0,1.31435975]
[1641039449034,0.00863844,46988.0,46987.0,0.98052384]
[1641039449233,0.00863844,46988.0,46987.0,0.979293]
[1641039449837,0.00863844,46988.0,46987.0,1.00050641]
[1641039450772,0.00863844,46988.0,46987.0,1.01889447]
[1641039450972,0.00838228,46988.0,46987.0,1.01889447]
[1641039451574,0.00838228,46988.0,46987.0,0.979293]
[1641039451773,0.00838228,46988.0,46987.0,0.99895503]
[1641039451975,0.00838228,46988.0,46987.0,0.65813203]
[1641039452578,0.00765799,46988.0,46987.0,0.65813203]
[1641039452774,0.00717393,46988.0,46987.0,0.67850859]
[1641039452976,0.00717393,46988.0,46987.0,0.65884656]
[1641039453176,0.39805893,46988.0,46987.0,0.65884656]
[1641039453676,0.75450922,46988.0,46987.0,0.68059563]
[1641039453946,0.75450922,46988.0,46987.0,0.66021907]
[1641039454147,0.340885,46987.0,46978.0,0.00011]
[1641039454346,0.00128658,46981.0,46978.0,0.00011]
[1641039454548,0.340885,46980.0,46978.0,0.00011]
[1641039454948,0.69311168,46980.0,46978.0,0.00011]
[1641039455150,1.05365391,46980.0,46978.0,0.00011]
[1641039455347,1.05365391,46980.0,46973.0,0.28649181]
[1641039455547,0.61276891,46980.0,46973.0,0.28193181]
[1641039455748,0.61276891,46980.0,46970.0,0.01423445]
[1641039456350,0.61276891,46980.0,46971.0,0.053334]
[1641039456853,0.1,46985.0,46973.0,0.27823731]
[1641039457050,0.0047,46986.0,46973.0,0.32823731]
[1641039457249,0.106454,46985.0,46973.0,0.32823731]
[1641039457683,0.0047,46986.0,46973.0,0.32823731]
[1641039457876,0.43994276,46983.0,46973.0,0.34992766]